bitfinex/quotes_ETHUSD_20240811
["timestamp","ask_amount","ask_price","bid_price","bid_amount"]
[1723368500201,2.58417,2708.8,2708.2,2.58473]
[1723368500397,2.58417,2708.8,2708.1,2.58477]
[1723368501035,0.5412633,2708.9,2708.3,2.58463]
[1723368501439,0.5412633,2708.9,2708.5,2.58443]
[1723368501648,2.312,2709.0,2708.1,2.58483]
[1723368502444,2.3502,2708.4,2707.7,2.58515]
[1723368502628,0.493472,2708.3,2707.7,2.58515]
[1723368502940,3.078172,2708.3,2707.7,2.58515]
[1723368503550,3.078172,2708.3,2707.7,5.1703]
[1723368503704,3.078172,2708.3,2707.7,2.58515]
[1723368503917,0.493472,2708.3,2707.7,2.58515]
[1723368504119,0.493472,2708.3,2707.9,2.58502]
[1723368504320,2.3502,2708.4,2707.9,2.58502]
[1723368505031,4.93435,2708.9,2708.2,2.58472]
[1723368505358,2.3502,2708.9,2708.4,2.58447]
[1723368505535,4.93428,2708.9,2708.3,2.58463]
[1723368505735,4.93428,2708.9,2708.2,2.58472]
[1723368505948,0.493428,2708.8,2708.2,2.58472]
[1723368506253,3.077598,2708.8,2708.2,2.58472]
[1723368506422,0.493428,2708.8,2708.2,2.58466]
[1723368506617,0.493428,2708.8,2708.3,2.58463]
[1723368506860,0.2843628,2708.7,2708.2,2.58466]
[1723368508677,2.3502,2708.9,2708.4,2.58449]
[1723368509121,2.3502,2708.9,2708.4,5.16896]
[1723368509320,2.3502,2708.9,2708.5,2.58444]
[1723368509560,2.58372,2709.3,2708.6,2.58427]
[1723368509561,2.3502,2709.3,2708.6,2.58427]
[1723368509864,2.843572,2709.3,2708.8,5.1682]
[1723368510068,2.3502,2709.3,2708.9,2.58404]
[1723368510560,2.3502,2709.3,2709.0,2.58397]
[1723368510756,2.58333,2709.7,2709.0,2.58397]
[1723368510757,2.3502,2709.7,2709.0,2.58397]
[1723368510960,2.608533,2709.7,2709.0,2.58397]
[1723368511138,5.191903,2709.7,2709.0,2.58397]
[1723368511923,2.58341,2709.6,2709.0,2.58397]
[1723368513999,5.16689,2709.6,2709.0,2.58397]
[1723368514205,0.7775423,2709.5,2708.7,2.5842]
[1723368514497,2.58369,2709.3,2708.7,2.5842]
[1723368514701,2.608533,2709.7,2708.3,3.0]
[1723368514702,2.58353,2709.5,2708.3,2.5846]
[1723368514877,2.3502,2708.9,2708.3,2.5846]
[1723368515217,2.3502,2708.9,2708.3,2.58457]
[1723368515399,4.93429,2708.9,2708.3,2.58457]
[1723368515605,2.3502,2708.9,2708.3,2.58457]
[1723368515903,2.3502,2708.9,2708.6,2.58434]
[1723368516209,4.93399,2709.2,2708.6,2.58434]
[1723368516703,2.58403,2709.0,2708.4,2.58447]
[1723368516887,2.58415,2708.9,2708.2,2.58468]
[1723368517095,2.81896,2709.1,2708.3,3.0]
[1723368517403,2.58398,2709.0,2708.5,2.58443]
[1723368517560,0.2819,2708.9,2708.5,2.58443]
[1723368517760,0.2819,2708.9,2708.3,5.58457]
[1723368518199,2.58423,2708.8,2707.7,2.2754]
[1723368518397,2.58442,2708.6,2707.9,2.58498]
[1723368518608,2.58442,2708.6,2707.9,2.58496]
[1723368518900,5.16886,2708.6,2707.9,2.58496]
[1723368519148,2.58442,2708.6,2707.9,2.58496]
[1723368519357,5.16886,2708.6,2707.9,2.58496]
[1723368519530,0.516886,2708.5,2707.9,2.58496]
[1723368520048,2.68391,2709.1,2707.7,2.58517]
[1723368520218,2.68391,2709.1,2707.6,2.5853]
[1723368520219,7.51963,2708.3,2707.6,2.5853]
[1723368520545,0.751963,2708.2,2707.5,2.58533]
[1723368520701,0.751963,2708.2,2707.6,2.5853]
[1723368521105,0.751963,2708.2,2707.7,2.5852]
[1723368521351,2.3502,2708.3,2707.7,2.58518]
[1723368522052,2.4796,2709.0,2708.4,2.58455]
[1723368522248,5.06364,2709.0,2708.4,2.58455]
[1723368522543,0.764758,2708.9,2708.4,2.58455]
[1723368523543,2.4796,2709.0,2708.6,2.58435]
[1723368524039,2.4796,2709.0,2708.4,2.58455]
[1723368524240,5.06358,2709.0,2708.4,2.58455]
[1723368524610,2.4796,2709.0,2708.4,2.58447]
[1723368525250,2.985956,2709.0,2708.4,2.58447]
[1723368526122,2.985956,2709.0,2708.4,2.5845]
[1723368526891,2.985956,2709.0,2708.2,2.58469]
[1723368526892,2.58413,2708.9,2708.3,2.58463]
[1723368527091,5.569956,2709.0,2708.2,2.58469]
[1723368527295,0.5569866,2708.9,2708.2,2.58469]
[1723368527607,0.5569866,2708.9,2708.4,2.58452]
[1723368528553,0.5569866,2708.9,2708.4,5.16904]
[1723368528753,2.4796,2709.0,2708.4,2.58452]
[1723368529954,5.06358,2709.0,2708.4,2.58452]
[1723368531091,5.06358,2709.0,2708.2,2.58469]
[1723368531290,5.06361,2709.0,2708.3,2.58458]
[1723368531459,3.090491,2708.9,2708.2,5.16936]
[1723368531664,3.090491,2708.9,2708.2,2.58467]
[1723368531883,2.58417,2708.8,2708.2,2.58467]
[1723368532594,0.506361,2708.9,2708.4,2.58452]
[1723368533003,3.090451,2708.9,2708.2,2.58466]
[1723368533229,3.3996651,2708.8,2708.2,2.58466]
[1723368533512,0.8154051,2708.8,2708.3,2.58458]
[1723368534012,0.8154051,2708.8,2708.2,2.58466]
[1723368534193,2.97485561,2708.7,2708.1,2.58483]
[1723368534507,2.97485561,2708.7,2708.2,3.0]
[1723368534676,0.39058561,2708.7,2708.2,5.58466]
[1723368534883,3.090451,2708.9,2708.2,5.58466]
[1723368535198,0.506361,2708.9,2708.4,2.58454]
[1723368535395,0.506361,2708.9,2708.2,5.58466]
[1723368535396,3.090441,2708.9,2708.2,8.16933]
[1723368535600,3.090441,2708.9,2708.2,5.58466]
[1723368535913,2.58437,2708.6,2708.2,3.0]
[1723368536073,2.58426,2708.7,2708.1,5.5848]
[1723368536774,0.5570041,2708.8,2708.1,5.5848]
[1723368537080,0.5570041,2708.8,2708.3,2.58463]
[1723368537294,3.1411741,2708.8,2708.1,5.58477]
[1723368537497,0.57252741,2708.7,2708.1,5.58477]
[1723368538108,3.1411741,2708.8,2708.2,2.58472]
[1723368539193,5.0639,2708.7,2707.8,2.58506]
[1723368539406,5.0639,2708.7,2708.0,2.58491]
[1723368539572,2.58436,2708.6,2708.0,2.58486]
[1723368540085,2.58436,2708.6,2707.8,2.58506]
[1723368540267,3.349184,2708.6,2707.8,2.58506]
[1723368540469,3.349184,2708.6,2707.9,2.58494]
[1723368540684,5.933624,2708.6,2708.0,2.58493]
[1723368540920,0.8413224,2708.5,2708.0,2.58493]
[1723368541414,0.8413224,2708.5,2707.8,2.58506]
[1723368541415,2.58457,2708.4,2707.8,5.17011]
[1723368541587,0.8413224,2708.5,2707.9,2.58496]
[1723368542407,0.8413224,2708.5,2708.0,2.58492]
[1723368542913,0.8413224,2708.5,2708.1,2.58481]
[1723368543100,2.58436,2708.6,2708.1,2.58481]
[1723368543305,2.4796,2708.7,2708.1,2.58479]
[1723368543500,2.4796,2708.7,2708.3,2.58458]
[1723368544708,2.4796,2708.7,2708.1,2.58478]
[1723368545011,0.24796,2708.6,2708.2,2.58474]
[1723368545307,0.24796,2708.6,2708.1,2.58477]
[1723368545830,2.58447,2708.5,2707.7,2.58514]
[1723368546121,0.531184,2708.5,2708.0,2.58485]
[1723368546832,0.24796,2708.6,2708.2,2.58472]
[1723368547134,2.3326,2709.1,2708.1,2.5848]
[1723368547288,2.58423,2708.8,2708.1,2.58475]
[1723368548209,2.58423,2708.8,2708.1,5.16951]
[1723368548392,2.58423,2708.8,2708.1,5.16952]
[1723368548717,0.516825,2708.8,2708.3,2.5846]
[1723368548931,2.3326,2709.1,2708.5,2.58439]
[1723368549413,4.91656,2709.1,2708.5,2.58439]
[1723368550137,2.3326,2709.1,2708.5,2.58439]
[1723368550625,5.1066,2709.5,2708.0,5.2874]
[1723368550824,2.58366,2709.4,2708.8,2.58409]
[1723368551639,2.61,2709.5,2708.4,2.5845]
[1723368551930,2.3326,2708.9,2708.0,2.58485]
[1723368552102,5.16883,2708.6,2708.0,2.5849]
[1723368552314,3.101273,2708.6,2708.0,2.5849]
[1723368552598,3.101273,2708.6,2707.8,2.58511]
[1723368552599,3.101273,2708.6,2707.9,2.58496]
[1723368552957,3.101273,2708.6,2708.0,2.58487]
[1723368553252,0.516883,2708.6,2708.1,2.58482]
[1723368553404,2.3326,2708.7,2707.3,5.76887116]
[1723368553606,2.3326,2708.1,2707.5,2.58532]
[1723368554045,2.3326,2708.1,2707.5,5.17064]
[1723368554248,2.3326,2708.1,2707.5,2.58532]
[1723368554553,2.3326,2708.1,2707.6,2.5853]
[1723368554907,2.58493,2708.0,2707.2,2.58569]
[1723368555258,2.58493,2708.0,2707.4,2.58549]
[1723368555913,2.3326,2708.1,2707.7,2.58515]
[1723368556111,4.91719,2708.4,2707.8,2.58511]
[1723368556409,0.258459,2708.3,2708.0,2.58492]
[1723368556668,2.3326,2708.7,2708.0,2.58489]
[1723368556839,2.3326,2708.7,2708.1,2.58481]
[1723368557653,2.3326,2708.7,2707.2,3.22453735]
[1723368557654,2.3326,2708.5,2707.2,4.86801459]
[1723368557858,2.3326,2708.5,2707.6,2.58523]
[1723368557859,4.91708,2708.5,2707.6,2.58523]
[1723368558158,2.58471,2708.3,2707.6,2.58523]
[1723368558454,0.258471,2708.2,2707.6,2.58523]
[1723368559246,2.843211,2708.2,2707.6,2.58523]
[1723368559635,0.258471,2708.2,2707.6,2.58523]
[1723368560456,0.258471,2708.2,2707.6,2.58522]
[1723368560665,7.91709,2708.5,2707.7,2.58515]
[1723368560952,5.3326,2708.5,2707.9,2.58499]
[1723368561160,3.4346638,2708.5,2707.9,2.58499]
[1723368561313,2.3326,2708.5,2708.0,2.58486]
[1723368561756,2.3326,2708.5,2707.9,2.58499]
[1723368562551,4.91708,2708.5,2707.8,2.58505]
[1723368562748,4.91708,2708.5,2707.9,2.58496]
[1723368562955,0.5436498,2708.4,2707.9,2.58496]
[1723368565653,0.5436498,2708.4,2707.4,22.50548]
[1723368565857,2.5848,2708.2,2707.6,2.58523]
[1723368566038,2.5848,2708.2,2707.7,2.58521]
[1723368566248,2.5848,2708.2,2707.6,2.58523]
[1723368566550,2.5848,2708.2,2707.5,2.58541]
[1723368566771,0.25848,2708.1,2707.6,2.5853]
[1723368566930,2.5848,2708.2,2707.6,2.5853]
[1723368567315,2.58459,2708.4,2707.8,2.58509]
[1723368567520,5.16922,2708.4,2707.8,2.58509]
[1723368567748,0.750182,2708.3,2707.8,2.58509]
[1723368568816,0.750182,2708.3,2707.8,2.58506]
[1723368569129,2.3326,2708.5,2708.0,2.58493]
[1723368570473,4.91712,2708.5,2707.9,2.58502]
[1723368571323,4.91712,2708.5,2708.0,2.58492]
[1723368571520,2.824312,2708.5,2708.0,2.58485]
[1723368571725,0.491712,2708.5,2708.0,2.58485]
[1723368572020,2.58438,2708.6,2708.0,2.58485]
[1723368572223,1.80973292,2711.3,2707.4,2.3514]
[1723368572224,2.58373,2709.3,2708.5,2.58439]
[1723368572416,2.58373,2709.3,2708.4,2.58446]
[1723368572417,2.5839,2709.1,2708.4,5.16895]
[1723368572633,2.5839,2709.1,2708.4,2.58446]
[1723368572839,2.58409,2708.9,2708.4,2.58446]
[1723368573721,5.16787,2709.1,2708.4,2.58446]
[1723368573925,0.25839,2709.0,2708.4,2.58446]
[1723368574236,2.84237,2709.0,2708.4,2.58446]
[1723368574957,0.25839,2709.0,2708.4,2.58446]
[1723368575474,0.25839,2709.0,2707.6,2.5853]
[1723368575475,2.3749,2708.7,2707.6,2.5853]
[1723368575668,2.3749,2708.2,2707.6,2.5853]
[1723368576027,2.3749,2708.2,2707.7,2.58521]
[1723368576479,2.3749,2708.2,2707.6,2.5853]
[1723368576971,4.95964,2708.2,2707.6,2.5853]
[1723368577155,2.58484,2708.1,2707.6,2.5853]
[1723368577477,0.754448,2708.1,2707.6,2.5853]
[1723368577769,0.754448,2708.1,2707.4,2.58547]
[1723368577770,2.58494,2708.0,2707.4,2.58547]
[1723368578152,0.754448,2708.1,2707.5,2.5854]
[1723368578334,3.339338,2708.1,2707.4,2.58544]
[1723368578537,0.5714088,2708.0,2707.4,2.58544]
[1723368579094,0.5714088,2708.0,2707.2,2.58567]
[1723368579095,3.1563688,2708.0,2707.3,2.58558]
[1723368579276,0.31563688,2707.9,2707.3,2.58558]
[1723368579575,0.31563688,2707.9,2707.4,2.5855]
[1723368579936,0.31563688,2707.9,2707.6,2.58531]
[1723368580258,0.5714088,2708.0,2707.6,2.58531]
[1723368580259,0.5714088,2708.0,2707.6,2.58523]
[1723368580458,2.3749,2708.2,2707.8,2.5851]
[1723368580663,2.3749,2708.2,2707.6,2.58523]
[1723368580863,2.3749,2708.2,2707.7,2.5852]
[1723368581439,2.3749,2708.2,2707.7,2.58518]
[1723368582369,2.870854,2708.2,2707.7,2.58518]
[1723368583767,2.870854,2708.2,2707.6,19.92]
[1723368583768,5.455624,2708.2,2707.6,19.92]
[1723368584198,2.870854,2708.2,2707.6,19.92]
[1723368585062,2.870854,2708.2,2707.7,2.58519]
[1723368587767,2.870854,2708.2,2707.6,19.92]
[1723368588579,2.870854,2708.2,2707.7,19.92]
[1723368588781,2.870854,2708.2,2707.8,2.58512]
[1723368588980,2.3749,2708.2,2707.8,2.58512]
[1723368590102,2.3749,2708.2,2707.8,2.58506]
[1723368591104,3.080309,2708.6,2707.4,2.2666]
[1723368591105,2.4788,2708.5,2707.4,2.2666]
[1723368591305,2.4788,2708.9,2708.3,2.58455]
[1723368591603,2.4788,2708.9,2708.4,2.58449]
[1723368594171,5.06289,2708.9,2708.3,2.58455]
[1723368594473,2.58426,2708.7,2708.1,2.58481]
[1723368595207,2.58448,2708.5,2707.9,2.58501]
[1723368595403,0.258448,2708.4,2707.9,2.58501]
[1723368595714,0.258448,2708.4,2708.0,2.58491]
[1723368595876,0.258448,2708.4,2707.9,2.58501]
[1723368596212,2.4788,2708.6,2707.9,2.58502]
[1723368596502,2.4788,2708.9,2708.4,2.58454]
[1723368596673,2.4788,2708.9,2708.5,2.58439]
[1723368597268,2.4788,2708.9,2708.6,2.58435]
[1723368597603,0.24788,2708.8,2708.6,2.58435]
[1723368598413,0.24788,2708.8,2708.6,2.58431]
[1723368598714,2.4788,2708.9,2708.6,2.58428]
[1723368599291,5.2528,2708.9,2707.6,2.2666]
[1723368599490,2.4788,2708.4,2707.8,2.58503]
[1723368599694,2.4788,2708.4,2707.9,2.58502]
[1723368599878,5.06336,2708.4,2707.8,2.58503]
[1723368601213,2.4788,2708.4,2708.0,2.58493]
[1723368601416,2.3355,2708.7,2707.6,19.92]
[1723368601586,2.3355,2708.7,2708.3,2.58459]
[1723368601919,2.3355,2708.7,2708.4,19.92]
[1723368602119,2.3355,2708.7,2708.5,2.58438]
[1723368602299,2.3355,2709.1,2708.6,2.58436]
[1723368602613,2.827429,2709.1,2708.6,2.58436]
[1723368602793,2.827429,2709.1,2708.7,2.5842]
[1723368602990,2.827429,2709.1,2708.4,22.50451]
[1723368603196,2.827429,2709.1,2708.5,2.58437]
[1723368604016,2.827429,2709.1,2708.6,2.58435]
[1723368605213,2.827429,2709.1,2708.7,2.58426]
[1723368605214,2.3355,2709.1,2708.7,2.58426]
[1723368606024,2.3355,2709.1,2708.9,2.58406]
[1723368606194,2.3355,2709.4,2708.9,2.58406]
[1723368606391,2.593853,2709.4,2708.9,2.58406]
[1723368606586,2.593853,2709.4,2709.0,2.58391]
[1723368606786,2.593853,2709.4,2709.1,2.58388]
[1723368607117,0.2593853,2709.3,2709.1,2.58387]
[1723368607419,2.3355,2709.7,2709.3,2.58367]
[1723368607606,2.3355,2709.7,2708.9,2.58399]
[1723368607801,4.91887,2709.7,2708.9,2.58399]
[1723368608004,2.58385,2709.2,2708.4,2.58451]
[1723368608203,2.3355,2709.1,2708.6,2.58435]
[1723368608594,4.91941,2709.1,2708.4,2.58451]
[1723368608814,0.23355,2709.0,2708.4,2.58451]
[1723368609120,2.3355,2708.8,2708.0,2.58487]
[1723368609281,2.3355,2708.8,2708.5,2.5844]
[1723368609482,2.58371,2709.3,2708.5,2.5844]
[1723368609683,2.58371,2709.3,2707.9,2.58496]
[1723368609684,2.3355,2709.2,2708.7,2.58426]
[1723368609917,2.3355,2709.2,2708.9,2.58401]
[1723368610083,3.075287,2709.6,2709.0,2.58396]
[1723368610084,2.3355,2709.5,2709.0,2.58396]
[1723368610285,0.5410787,2709.4,2709.1,2.58381]
[1723368610493,2.3355,2709.5,2709.1,2.58381]
[1723368611318,2.3355,2709.5,2709.0,2.58396]
[1723368612884,2.3355,2709.7,2709.2,2.58372]
[1723368613082,3.152152,2709.7,2709.2,2.58372]
[1723368613589,5.735462,2709.7,2709.1,2.58387]
[1723368613908,0.5735462,2709.6,2709.1,2.58387]
[1723368615521,0.5735462,2709.6,2709.2,2.58377]
[1723368615731,2.3355,2709.7,2709.2,2.58377]
[1723368616628,2.3355,2709.7,2709.4,2.58353]
[1723368616811,2.58296,2710.1,2709.4,2.58353]
[1723368616812,5.3355,2710.0,2709.4,2.58353]
[1723368616997,0.791846,2709.9,2709.4,2.58353]
[1723368617521,3.374966,2709.9,2709.2,2.58372]
[1723368617687,2.58322,2709.8,2709.0,2.58394]
[1723368618195,2.58322,2709.8,2709.1,2.58384]
[1723368618392,0.3375066,2709.7,2709.1,2.58384]
[1723368618613,0.3375066,2709.7,2709.3,2.58369]
[1723368618928,0.791846,2709.9,2709.4,2.58352]
[1723368619131,2.3355,2710.0,2709.4,2.58352]
[1723368619304,4.91854,2710.0,2709.4,2.58352]
[1723368619896,4.91854,2710.0,2709.3,2.58365]
[1723368620099,4.91854,2710.0,2709.3,2.58363]
[1723368620434,4.91854,2710.0,2709.4,2.58359]
[1723368620643,0.491854,2709.9,2709.4,2.58359]
[1723368621030,0.491854,2709.9,2709.2,2.58372]
[1723368621235,4.91858,2710.0,2709.4,2.58359]
[1723368621404,4.91858,2710.0,2709.2,2.58372]
[1723368621611,4.91858,2710.0,2709.3,2.58365]
[1723368621832,4.91858,2710.0,2709.0,2.5839]
[1723368621833,2.3355,2710.0,2709.0,2.5839]
[1723368622038,2.58337,2709.7,2709.0,5.1678]
[1723368622341,2.3449,2710.6,2709.8,2.58315]
[1723368622508,2.3449,2710.6,2710.1,2.58285]
[1723368622708,2.3449,2710.9,2710.2,2.58282]
[1723368623010,2.3449,2710.9,2710.4,2.5826]
[1723368623211,2.3449,2710.9,2710.2,2.58282]
[1723368623212,4.92707,2710.9,2710.2,2.58282]
[1723368623411,4.92707,2710.9,2710.3,2.58272]
[1723368623412,0.23449,2710.8,2710.3,2.58272]
[1723368623746,2.81675,2710.8,2710.2,2.58282]
[1723368623945,3.356752,2710.7,2710.0,2.58299]
[1723368624105,2.3449,2710.4,2709.8,2.58314]
[1723368624310,2.3449,2710.4,2709.4,3.0]
[1723368624311,2.3449,2710.4,2710.0,2.58297]
[1723368624510,2.58237,2710.7,2710.0,2.58299]
[1723368624732,2.58237,2710.7,2710.0,2.58296]
[1723368624917,0.258237,2710.6,2710.1,2.58284]
[1723368625133,4.92708,2710.9,2710.2,2.58281]
[1723368625320,4.92708,2710.9,2709.9,2.58304]
[1723368625321,2.58249,2710.6,2709.9,2.58304]
[1723368625643,2.58249,2710.6,2710.0,2.58302]
[1723368626009,2.58263,2710.5,2709.8,4.84755]
[1723368626446,4.92756,2710.4,2709.8,2.58315]
[1723368626616,5.678565,2710.4,2709.8,2.58315]
[1723368627143,2.58286,2710.2,2709.4,3.0]
[1723368627351,2.58302,2710.0,2709.3,2.58366]
[1723368627648,2.603202,2709.9,2709.3,5.16726]
[1723368627847,2.58287,2710.2,2709.5,2.58348]
[1723368628057,7.51068,2710.2,2709.5,2.58348]
[1723368628486,7.51068,2710.2,2709.6,2.58331]
[1723368628487,4.92777,2710.2,2709.6,2.58331]
[1723368628764,5.678813,2710.2,2709.6,2.58331]
[1723368629139,5.678813,2710.2,2709.3,5.16727]
[1723368629140,2.58309,2710.0,2709.3,5.16727]
[1723368629341,3.095943,2710.2,2709.8,2.58321]
[1723368629540,2.3449,2710.5,2709.4,2.2644]
[1723368629765,2.58247,2710.6,2710.0,5.16596]
[1723368629936,5.419878,2710.8,2710.1,2.58286]
[1723368630125,0.5419878,2710.7,2710.1,2.58286]
[1723368630556,3.1243478,2710.7,2710.1,2.58286]
[1723368630947,0.5419878,2710.7,2710.2,2.58282]
[1723368631148,3.1243578,2710.7,2710.0,2.58295]
[1723368631325,4.92717,2710.8,2710.2,2.58274]
[1723368631735,2.58209,2711.0,2710.4,2.58263]
[1723368631937,2.58225,2710.9,2710.2,2.58283]
[1723368632139,2.840515,2710.8,2710.2,2.58276]
[1723368632383,2.58225,2710.9,2710.3,2.58267]
[1723368632525,2.58209,2711.0,2710.4,2.58263]
[1723368632722,2.3449,2711.2,2710.6,2.58239]
[1723368632723,4.92679,2711.2,2710.6,2.58239]
[1723368632926,2.3449,2711.2,2710.6,2.58239]
[1723368633160,2.58182,2711.3,2710.6,2.58239]
[1723368633366,2.840002,2711.3,2710.7,2.58229]
[1723368634226,0.258182,2711.3,2710.8,2.58225]
[1723368634441,4.92652,2711.5,2710.9,2.58216]
[1723368634835,2.3449,2711.5,2711.0,2.58206]
[1723368635071,2.58142,2711.7,2711.0,2.58206]
[1723368635238,2.58142,2711.7,2711.1,2.58196]
[1723368635566,2.58132,2711.8,2711.1,2.58189]
[1723368635751,4.92615,2711.9,2711.1,2.58189]
[1723368635752,2.5814,2711.7,2711.1,2.58189]
[1723368635952,2.58179,2711.3,2710.6,2.58238]
[1723368636173,2.58198,2711.1,2710.5,2.58252]
[1723368636474,2.58179,2711.3,2710.6,2.58243]
[1723368636641,0.492669,2711.2,2710.6,2.58243]
[1723368636829,3.074559,2711.2,2710.5,2.58248]
[1723368637461,3.074559,2711.2,2710.6,2.58245]
[1723368637661,4.92662,2711.4,2710.7,2.58233]
[1723368637867,7.5084,2711.4,2710.7,2.58233]
[1723368638164,4.92662,2711.4,2710.7,2.58233]
[1723368638332,4.92662,2711.4,2710.8,2.58223]
[1723368638661,2.58181,2711.3,2710.6,2.5824]
[1723368638861,5.774,2712.0,2711.0,2.58203]
[1723368638862,2.3449,2711.7,2711.0,2.58203]
[1723368639068,2.3449,2711.7,2711.2,2.58188]
[1723368639319,2.58134,2711.8,2711.0,2.58201]
[1723368639426,2.5814,2711.7,2711.0,2.58201]
[1723368639766,3.097674,2711.7,2711.0,2.58201]
[1723368640631,2.58158,2711.6,2711.0,2.58201]
[1723368640967,2.58134,2711.8,2711.0,2.58201]
[1723368641163,2.58122,2711.9,2711.2,2.58181]
[1723368641365,2.58122,2711.9,2711.3,2.58172]
[1723368641869,2.58122,2711.9,2711.2,2.58181]
[1723368641870,2.3449,2712.0,2711.4,2.58167]
[1723368642835,2.58109,2712.1,2711.4,2.58167]
[1723368643463,2.408,2712.4,2711.4,2.58167]
[1723368643667,2.5809,2712.3,2711.6,2.5815]
[1723368643871,2.58095,2712.2,2711.6,2.5815]
[1723368644291,2.5809,2712.3,2711.6,2.58143]
[1723368644488,0.49889,2712.2,2711.8,2.58129]
[1723368644783,4.98881,2712.4,2711.9,19.92]
[1723368644784,2.408,2712.4,2711.9,19.92]
[1723368644988,2.58065,2712.5,2711.9,19.92]
[1723368645274,0.258065,2712.4,2711.9,19.92]
[1723368645479,2.58094,2712.2,2711.9,19.92]
[1723368645685,2.58112,2712.0,2711.9,19.92]
[1723368645883,4.98912,2712.0,2711.9,19.92]
[1723368646553,2.58112,2712.0,2711.9,19.92]
[1723368647385,5.16224,2712.0,2711.9,19.92]
[1723368647587,3.097344,2712.0,2711.9,19.92]
[1723368647755,0.516224,2712.0,2711.9,19.92]
[1723368647955,2.58112,2712.0,2711.9,19.92]
[1723368648666,2.581,2712.2,2711.9,19.92]
[1723368648862,2.58103,2712.1,2711.9,19.92]
[1723368649063,3.079933,2712.1,2711.9,19.92]
[1723368649384,5.661033,2712.1,2711.9,19.92]
[1723368649686,2.58103,2712.1,2711.9,19.92]
[1723368650250,2.58112,2712.0,2711.9,19.92]
[1723368650655,2.58103,2712.1,2711.9,19.92]
[1723368651079,5.16214,2712.1,2711.9,19.92]
[1723368651356,2.58112,2712.0,2711.9,19.92]
[1723368651952,2.58112,2712.0,2711.5,19.92]
[1723368651953,2.5815,2711.6,2711.5,19.92]
[1723368652593,2.58127,2711.9,2711.5,19.92]
[1723368653391,2.58143,2711.7,2711.5,19.92]
[1723368653592,5.16256,2711.9,2711.5,19.92]
[1723368653892,2.5815,2711.6,2711.5,19.92]
[1723368654388,5.163,2711.6,2711.5,19.92]
[1723368654589,2.58171,2711.4,2711.2,19.92]
[1723368654790,2.5815,2711.6,2710.9,7.35]
[1723368654791,2.5815,2711.6,2711.3,19.92]
[1723368654995,4.98942,2711.7,2711.3,19.92]
[1723368655181,2.58116,2712.0,2711.3,22.50177]
[1723368655393,5.16235,2712.0,2711.4,22.50167]
[1723368655708,2.58133,2711.8,2711.4,19.92]
[1723368655996,2.58164,2711.5,2710.6,3.0]
[1723368656297,2.58162,2711.5,2710.9,2.58208]
[1723368656608,2.774,2712.0,2711.2,2.5818]
[1723368656609,2.58125,2711.9,2711.2,2.5818]
[1723368656972,2.58147,2711.7,2711.0,5.07963]
[1723368657173,2.58147,2711.7,2710.8,22.50221]
[1723368657174,2.58162,2711.5,2710.9,2.58214]
[1723368657491,2.58162,2711.5,2710.8,22.50221]
[1723368657492,2.58179,2711.3,2710.8,19.92]
[1723368657713,5.16292,2711.7,2710.8,2.58226]
[1723368657866,2.58144,2711.7,2711.0,2.58207]
[1723368658196,2.58144,2711.7,2711.0,2.582]
[1723368658497,2.58113,2712.0,2711.4,2.58163]
[1723368658793,2.58098,2712.2,2711.5,2.58158]
[1723368658994,2.58108,2712.1,2711.5,2.58158]
[1723368659295,2.58102,2712.1,2711.5,2.58153]
[1723368659654,3.657241,2712.2,2711.6,2.58149]
[1723368660093,2.58105,2712.1,2711.4,2.65537649]
[1723368660493,2.58112,2712.0,2711.3,24.99934]
[1723368660673,2.58112,2712.0,2711.4,2.58161]
[1723368660874,2.58112,2712.0,2711.5,2.58158]
[1723368661258,2.58108,2712.1,2711.5,2.58158]
[1723368661461,2.58122,2711.9,2711.3,22.50172]
[1723368661709,3.4457051,2712.1,2711.4,2.58163]
[1723368662000,2.58129,2711.9,2711.3,22.50172]
[1723368662180,2.58138,2711.8,2711.3,19.92]
[1723368662765,3.03334961,2712.0,2711.4,19.92]
[1723368662958,5.16235,2712.0,2711.4,19.92]
[1723368663273,2.58126,2711.9,2711.4,19.92]
[1723368663475,2.58133,2711.8,2711.4,19.92]
[1723368664205,2.58112,2712.0,2711.4,19.92]
[1723368664414,2.58117,2712.0,2711.4,19.92]
[1723368664617,2.58124,2711.9,2711.4,19.92]
[1723368665691,5.16253,2711.9,2711.4,19.92]
[1723368665886,2.58124,2711.9,2711.4,19.92]
[1723368666110,5.16253,2711.9,2711.4,19.92]
[1723368667325,2.5814,2711.7,2711.4,19.92]
[1723368668100,5.16318,2711.5,2711.4,19.92]
[1723368669338,2.58159,2711.5,2711.4,19.92]
[1723368671343,2.58135,2711.8,2711.4,19.92]
[1723368672541,2.58121,2711.9,2711.4,19.92]
[1723368672835,3.0,2711.8,2711.4,19.92]
[1723368673041,2.4208,2712.0,2711.4,22.50167]
[1723368673237,2.58093,2712.2,2711.6,2.58149]
[1723368673410,2.58093,2712.2,2711.6,2.65523943]
[1723368673601,2.58103,2712.1,2711.6,2.58149]
[1723368673944,2.58093,2712.2,2711.6,2.58149]
[1723368674155,2.58093,2712.2,2711.5,19.92]
[1723368674448,2.58122,2711.9,2711.5,19.92]
[1723368674751,2.58136,2711.8,2711.5,19.92]
[1723368675246,2.581,2712.2,2711.5,19.92]